fUST/lending_fUST_20251219
["ID","MTS","AMOUNT","RATE_DAILY","PERIOD"]
[399165160,1766130677114,-780.17,0.0005589,120]
[399165161,1766130677124,-500.0,0.0005589,7]
[399165162,1766130677134,-500.0,0.0005589,120]
[399165163,1766130677143,-194.09569664,0.0005589,120]
[399165164,1766130677152,-485.97588672,0.0005589,120]
[399165165,1766130677162,-1000.0,0.0005589,2]
[399165166,1766130677171,-221.56176799,0.0005589,120]
[399165167,1766130677181,-527.64,0.0005589,120]
[399165168,1766130677190,-503.32693068,0.0005589,120]
[399165169,1766130677199,-500.0,0.0005589,120]
[399165170,1766130677208,-808.56,0.0005589,120]
[399165171,1766130677217,-500.0,0.0005589,5]
[399165172,1766130677227,-532.44444294,0.0005589,120]
[399165173,1766130677237,-500.0,0.0005589,120]
[399165174,1766130677246,-500.0,0.0005589,120]
[399165175,1766130677255,-473.21466059,0.0005589,120]
[399165176,1766130677265,-500.0,0.0005589,30]
[399165177,1766130677274,-500.0,0.0005589,120]
[399165178,1766130677284,-3828.03,0.0005589,120]
[399165179,1766130677294,-1000.0,0.0005589,2]
[399165180,1766130677304,-165.82352739,0.0005589,120]
[399165181,1766130677313,-500.0,0.0005589,120]
[399165182,1766130677322,-500.0,0.0005589,120]
[399165183,1766130677331,-500.0,0.0005589,120]
[399165184,1766130677340,-1164.05,0.0005589,120]
[399165185,1766130677350,-283.41548849,0.0005589,120]
[399165186,1766130677359,-500.0,0.0005589,2]
[399165187,1766130677368,-500.0,0.0005589,120]
[399165188,1766130677377,-500.0,0.0005589,120]
[399165189,1766130677387,-500.0,0.0005589,120]
[399165190,1766130677396,-500.0,0.0005589,120]
[399165191,1766130677405,-500.0,0.0005589,120]
[399165192,1766130677414,-500.0,0.0005589,120]
[399165193,1766130677423,-500.70807825,0.0005589,120]
[399165194,1766130677432,-500.0,0.0005589,120]
[399165195,1766130677442,-500.0,0.0005589,120]
[399165196,1766130677451,-500.0,0.0005589,60]
[399165197,1766130677460,-500.0,0.0005589,120]
[399165198,1766130677469,-538.52,0.0005589,120]
[399165199,1766130677480,-500.0,0.0005589,120]
[399165200,1766130677489,-500.0,0.0005589,120]
[399165201,1766130677498,-500.0,0.0005589,120]
[399165202,1766130677507,-1789.97,0.0005589,120]
[399165203,1766130677517,-541.95133691,0.0005589,120]
[399165204,1766130677526,-500.0,0.0005589,120]
[399165205,1766130677535,-502.57132841,0.0005589,120]
[399165206,1766130677544,-500.0,0.0005589,120]
[399165207,1766130677554,-500.0,0.0005589,120]
[399165208,1766130677563,-500.0,0.0005589,120]
[399165209,1766130677573,-500.0,0.0005589,120]
[399165210,1766130677582,-500.0,0.0005589,120]
[399165211,1766130677592,-424.15506958,0.0005589,120]
[399165212,1766130677601,-512.97,0.0005589,120]
[399165213,1766130677610,-500.0,0.0005589,120]
[399165214,1766130677619,-500.0,0.0005589,120]
[399165215,1766130677627,-500.0,0.0005589,120]
[399165216,1766130677636,-500.0,0.0005589,120]
[399165217,1766130677648,-500.0,0.0005589,120]
[399165218,1766130677657,-1954.53,0.0005589,120]
[399165219,1766130677666,-500.0,0.0005589,120]
[399165220,1766130677675,-329.80580456,0.0005589,120]
[399165221,1766130677684,-500.0,0.0005589,120]
[399165222,1766130677693,-500.0,0.0005589,120]
[399165223,1766130677702,-500.0,0.0005589,120]
[399165224,1766130677711,-1050.87,0.0005589,120]
[399165225,1766130677719,-3817.38,0.0005589,120]
[399165226,1766130677728,-500.0,0.0005589,120]
[399165227,1766130677738,-500.0,0.0005589,120]
[399165228,1766130677747,-505.66223127,0.0005589,120]
[399165229,1766130677756,-500.0,0.0005589,120]
[399165230,1766130677766,-500.0,0.0005589,30]
[399165231,1766130677774,-500.0,0.0005589,120]
[399165232,1766130677784,-500.0,0.0005589,30]
[399165233,1766130677793,-585.36386798,0.0005589,120]
[399165234,1766130677802,-1315.23,0.0005589,120]
[399165235,1766130677811,-500.0,0.0005589,120]
[399165236,1766130677820,-500.0,0.0005589,120]
[399165237,1766130677829,-513.13704065,0.0005589,120]
[399165238,1766130677838,-500.0,0.0005589,120]
[399165239,1766130677847,-500.0,0.0005589,120]
[399165240,1766130677856,-500.0,0.0005589,120]
[399165241,1766130677865,-500.0,0.0005589,120]
[399165242,1766130677875,-500.0,0.0005589,120]
[399165243,1766130677884,-500.0,0.0005589,120]
[399165244,1766130677893,-1071.88,0.0005589,120]
[399165245,1766130677902,-500.0,0.0005589,120]
[399165246,1766130677912,-500.0,0.0005589,120]
[399165247,1766130677921,-500.0,0.0005589,120]
[399165248,1766130677931,-500.0,0.0005589,120]
[399165249,1766130677940,-500.0,0.0005589,120]
[399165250,1766130677948,-500.0,0.0005589,120]
[399165251,1766130677957,-500.0,0.0005589,120]
[399165252,1766130677967,-500.0,0.0005589,120]
[399165253,1766130677976,-500.0,0.0005589,120]
[399165254,1766130677985,-500.0,0.0005589,120]
[399165255,1766130677994,-500.0,0.0005589,120]
[399165256,1766130678004,-501.83545056,0.0005589,120]
[399165257,1766130678013,-524.88,0.0005589,120]
[399165258,1766130678023,-500.0,0.0005589,120]
[399165259,1766130678032,-513.78378881,0.0005589,120]
[399165260,1766130678041,-696.02,0.0005589,120]
[399165261,1766130678050,-1278.98,0.0005589,120]
[399165262,1766130678059,-848.2,0.0005589,120]
[399165263,1766130678070,-682.7,0.0005589,120]
[399165264,1766130678079,-608.96588943,0.0005589,120]
[399165265,1766130678088,-500.0,0.0005589,120]
[399165266,1766130678097,-1176.57,0.0005589,120]
[399165267,1766130678106,-500.0,0.0005589,120]
[399165268,1766130678115,-500.0,0.0005589,120]
[399165269,1766130678125,-500.0,0.0005589,120]
[399165270,1766130678133,-500.0,0.0005589,120]
[399165271,1766130678143,-500.0,0.0005589,120]
[399165272,1766130678152,-500.0,0.0005589,120]
[399165273,1766130678162,-500.0,0.0005589,120]
[399165274,1766130678172,-504.27534618,0.0005589,120]
[399165275,1766130678182,-500.0,0.0005589,120]
[399165276,1766130678191,-500.0,0.0005589,120]
[399165277,1766130678200,-500.0,0.0005589,120]
[399165278,1766130678209,-1672.469074,0.0005589,120]
[399165279,1766130678219,-500.0,0.0005589,120]
[399165280,1766130678228,-500.0,0.0005589,120]
[399165281,1766130678237,-628.56,0.0005589,120]
[399165282,1766130678246,-500.0,0.0005589,120]
[399165283,1766130678256,-1384.97,0.0005589,120]
[399165284,1766130678266,-189.23357472,0.0005589,120]
[399165285,1766130678275,-500.0,0.0005589,120]
[399165286,1766130678284,-500.0,0.0005589,120]
[399165287,1766130678293,-1052.14,0.0005589,120]
[399165288,1766130678303,-496.84809073,0.0005589,120]
[399165289,1766130678312,-500.0,0.0005589,120]
[399165290,1766130678323,-500.0,0.0005589,120]
[399165291,1766130678332,-500.0,0.0005589,120]
[399165292,1766130678341,-184.30545823,0.0005589,120]
[399165293,1766130678350,-500.0,0.0005589,120]
[399165294,1766130678360,-507.87735577,0.0005589,120]
[399165295,1766130678370,-206.64829701,0.0005589,120]
[399165296,1766130678379,-320.88350355,0.0005589,120]
[399165297,1766130678389,-500.0,0.0005589,120]
[399165298,1766130678398,-500.0,0.0005589,120]
[399165299,1766130678408,-500.0,0.0005589,120]
[399165300,1766130678418,-1084.45,0.0005589,120]
[399165301,1766130678428,-500.0,0.0005589,120]
[399165302,1766130678438,-898.43,0.0005589,120]
[399165303,1766130678448,-500.0,0.0005589,120]
[399165304,1766130678458,-529.74,0.0005589,120]
[399165305,1766130678468,-500.0,0.0005589,120]
[399165306,1766130678478,-500.0,0.0005589,30]
[399165307,1766130678489,-841.83,0.0005589,120]
[399165308,1766130678498,-500.0,0.0005589,120]
[399165309,1766130678508,-500.0,0.0005589,120]
[399165310,1766130678518,-500.0,0.0005589,120]
[399165311,1766130678528,-500.0,0.0005589,120]
[399165312,1766130678537,-1049.58,0.0005589,120]
[399165313,1766130678547,-500.0,0.0005589,120]
[399165314,1766130678557,-500.0,0.0005589,60]
[399165315,1766130678566,-500.0,0.0005589,120]
[399165316,1766130678576,-500.0,0.0005589,120]
[399165317,1766130678588,-500.0,0.0005589,120]
[399165318,1766130678607,-5832.94,0.0005589,120]
[399165319,1766130678626,-500.0,0.0005589,120]
[399165320,1766130678641,-500.0,0.0005589,120]
[399165321,1766130678653,-500.0,0.0005589,120]
[399165322,1766130678662,-500.0,0.0005589,120]
[399165323,1766130678672,-1123.95,0.0005589,120]
[399165324,1766130678681,-500.0,0.0005589,120]
[399165325,1766130678691,-500.0,0.0005589,120]
[399165326,1766130678700,-500.0,0.0005589,120]
[399165327,1766130678709,-507.18709984,0.0005589,120]
[399165328,1766130678718,-500.0,0.0005589,120]
[399165329,1766130678728,-584.86070536,0.0005589,120]
[399165330,1766130678738,-500.0,0.0005589,120]
[399165331,1766130678751,-500.0,0.0005589,120]
[399165332,1766130678765,-500.0,0.0005589,120]
[399165333,1766130678775,-503.88631196,0.0005589,120]
[399165334,1766130678784,-500.0,0.0005589,120]
[399165335,1766130678794,-799.69,0.0005589,21]
[399165336,1766130678803,-565.42,0.0005589,120]
[399165337,1766130678813,-500.0,0.0005589,120]
[399165338,1766130678822,-588.87524646,0.0005589,120]
[399165339,1766130678832,-500.0,0.0005589,120]
[399165340,1766130678842,-500.0,0.0005589,120]
[399165341,1766130678851,-1745.65,0.0005589,120]
[399165342,1766130678860,-500.0,0.0005589,120]
[399165343,1766130678870,-1000.0,0.0005589,120]
[399165344,1766130678879,-833.05,0.0005589,120]
[399165345,1766130678888,-501.72,0.0005589,120]
[399165346,1766130678898,-500.0,0.0005589,120]
[399165347,1766130678908,-500.0,0.0005589,120]
[399165348,1766130678917,-500.0,0.0005589,120]
[399165349,1766130678927,-500.0,0.0005589,120]
[399165350,1766130678936,-861.29,0.0005589,120]
[399165351,1766130678945,-500.0,0.0005589,120]
[399165352,1766130678954,-500.0,0.0005589,120]
[399165353,1766130678964,-500.0,0.0005589,120]
[399165354,1766130678973,-500.0,0.0005589,120]
[399165355,1766130678982,-4150.56,0.0005589,120]
[399165356,1766130678992,-500.0,0.0005589,120]
[399165357,1766130679002,-500.0,0.0005589,120]
[399165358,1766130679011,-500.0,0.0005589,120]
[399165359,1766130679020,-500.0,0.0005589,120]
[399165360,1766130679029,-500.0,0.0005589,120]
[399165361,1766130679038,-500.0,0.0005589,120]
[399165362,1766130679047,-1545.59,0.0005589,120]
[399165363,1766130679057,-601.18,0.0005589,120]
[399165364,1766130679066,-500.0,0.0005589,120]
[399165365,1766130679075,-500.0,0.0005589,120]
[399165366,1766130679084,-500.0,0.0005589,120]
[399165367,1766130679094,-500.0,0.0005589,120]
[399165368,1766130679103,-500.0,0.0005589,120]
[399165369,1766130679113,-500.0,0.0005589,120]
[399165370,1766130679123,-500.0,0.0005589,120]
[399165371,1766130679132,-3273.78,0.0005589,120]
[399165372,1766130679142,-153.32898633,0.0005589,120]
[399165373,1766130679151,-2163.92,0.0005589,120]
[399165374,1766130679160,-500.0,0.0005589,120]
[399165375,1766130679170,-615.54,0.0005589,120]
[399165376,1766130679179,-596.30765476,0.0005589,120]
[399165377,1766130679189,-2441.66,0.0005589,3]
[399165378,1766130679200,-500.0,0.0005589,120]
[399165379,1766130679209,-500.0,0.0005589,120]
[399165380,1766130679219,-535.83,0.0005589,120]
[399165381,1766130679229,-500.0,0.0005589,120]
[399165382,1766130679240,-158.77436788,0.0005589,120]
[399165383,1766130679249,-500.0,0.0005589,120]
[399165384,1766130679259,-500.0,0.0005589,120]
[399165385,1766130679268,-500.0,0.0005589,120]
[399165386,1766130679279,-500.0,0.0005589,120]
[399165387,1766130679288,-249.07810701,0.0005589,120]
[399165388,1766130679298,-970.05,0.0005589,120]
[399165389,1766130679307,-1307.75,0.0005589,120]
[399165390,1766130679317,-500.0,0.0005589,120]
[399165391,1766130679327,-500.0,0.0005589,120]
[399165392,1766130679336,-529.54,0.0005589,120]
[399165393,1766130679346,-500.0,0.0005589,120]
[399165394,1766130679355,-421.84220996,0.0005589,120]
[399165395,1766130679365,-500.0,0.0005589,120]
[399165396,1766130679374,-500.0,0.0005589,120]
[399165397,1766130679383,-619.49,0.0005589,120]
[399165398,1766130679392,-500.0,0.0005589,120]
[399165399,1766130679402,-2004.58,0.0005589,120]
[399165400,1766130679412,-500.0,0.0005589,120]
[399165401,1766130679422,-555.38,0.0005589,120]
[399165402,1766130679431,-500.0,0.0005589,120]
[399165403,1766130679440,-500.0,0.0005589,120]
[399165404,1766130679450,-500.0,0.0005589,120]
[399165405,1766130679459,-500.0,0.0005589,120]
[399165406,1766130679469,-586.3548274,0.0005589,120]
[399165407,1766130679478,-570.98,0.0005589,120]
[399165408,1766130679487,-281.80156393,0.0005589,120]
[399165409,1766130679496,-500.0,0.0005589,120]
[399165410,1766130679506,-500.0,0.0005589,120]
[399165411,1766130679516,-617.64,0.0005589,120]
[399165412,1766130679526,-708.43,0.0005589,120]
[399165413,1766130679536,-500.0,0.0005589,120]
[399165414,1766130679545,-756.93,0.0005589,120]
[399165415,1766130679554,-1547.5,0.0005589,120]
[399165416,1766130679563,-564.73,0.0005589,120]
[399165417,1766130679573,-788.22,0.0005589,120]
[399165418,1766130679582,-500.0,0.0005589,120]
[399165419,1766130679593,-500.0,0.0005589,120]
[399165420,1766130679714,-500.0,0.0005589,120]
[399165421,1766130679725,-500.0,0.0005589,120]
[399165422,1766130679734,-500.0,0.0005589,120]
[399165423,1766130679743,-1289.84,0.0005589,120]
[399165424,1766130679752,-500.0,0.0005589,120]
[399165425,1766130679761,-1514.92,0.0005589,120]
[399165426,1766130679772,-500.0,0.0005589,120]
[399165427,1766130679781,-1558.2526365,0.000559,120]
[399165428,1766130679790,-2000.0,0.00056,120]
[399165429,1766130679799,-150.0,0.00056,120]
[399165430,1766130679809,-8586.94,0.00056,2]
[399165431,1766130679818,-151.44692879,0.00056,30]
[399165432,1766130679827,-828.0,0.00056,120]
[399165433,1766130679837,-156.09174027,0.00056002,120]
[399165434,1766130679846,-152.24029174,0.00056047,120]
[399165435,1766130679855,-302.92998342,0.00056047,120]
[399165436,1766130679864,-900.0,0.00056156,120]
[399165437,1766130679873,-780.17,0.00056164,120]
[399165438,1766130679883,-500.0,0.00056164,7]
[399165439,1766130679892,-500.0,0.00056164,120]
[399165440,1766130679901,-1000.0,0.00056164,2]
[399165441,1766130679911,-527.64,0.00056164,120]
[399165442,1766130679920,-500.0,0.00056164,120]
[399165443,1766130679929,-808.56,0.00056164,120]
[399165444,1766130679938,-500.0,0.00056164,5]
[399165445,1766130679948,-500.0,0.00056164,120]
[399165446,1766130679957,-643.55029305,0.00056164,120]
[399165447,1766130679967,-500.0,0.00056164,30]
[399165448,1766130679977,-500.0,0.00056164,120]
[399165449,1766130679988,-3828.03,0.00056164,120]
[399165450,1766130679998,-1000.0,0.00056164,2]
[399165451,1766130680007,-500.0,0.00056164,120]
[399165452,1766130680018,-500.0,0.00056164,120]
[399165453,1766130680027,-500.0,0.00056164,120]
[399165454,1766130680037,-1164.05,0.00056164,120]
[399165455,1766130680047,-500.0,0.00056164,2]
[399165456,1766130680057,-500.0,0.00056164,120]
[399165457,1766130680066,-500.0,0.00056164,120]
[399165458,1766130680076,-448.76574708,0.00056164,120]
[399165459,1766130680085,-500.0,0.00056164,120]
[399165460,1766130680095,-500.0,0.00056164,120]
[399165461,1766130680104,-500.0,0.00056164,120]
[399165462,1766130680114,-506.61699363,0.00056164,120]
[399165463,1766130680123,-500.0,0.00056164,120]
[399165464,1766130680133,-500.0,0.00056164,60]
[399165465,1766130680143,-209.29904686,0.00056164,120]
[399165466,1766130680152,-538.52,0.00056164,120]
[399165467,1766130680161,-492.8985112,0.00056164,120]
[399165468,1766130680171,-500.0,0.00056164,120]
[399165469,1766130680180,-500.0,0.00056164,120]
[399165470,1766130680190,-1789.97,0.00056164,120]
[399165471,1766130680200,-500.0,0.00056164,120]
[399165472,1766130680209,-605.86842035,0.00056164,120]
[399165473,1766130680219,-500.0,0.00056164,120]
[399165474,1766130680228,-586.83547479,0.00056164,120]
[399165475,1766130680238,-508.31184337,0.00056164,120]
[399165476,1766130680248,-458.11687139,0.00056164,120]
[399165477,1766130680258,-512.97,0.00056164,120]
[399165478,1766130680267,-571.30163026,0.00056164,120]
[399165479,1766130680277,-619.50758135,0.00056164,120]
[399165480,1766130680287,-182.95766018,0.00056164,120]
[399165481,1766130680296,-500.0,0.00056164,120]
[399165482,1766130680305,-500.0,0.00056164,120]
[399165483,1766130680314,-1954.53,0.00056164,120]
[399165484,1766130680323,-510.10130871,0.00056164,120]
[399165485,1766130680333,-500.0,0.00056164,120]
[399165486,1766130680343,-500.0,0.00056164,120]
[399165487,1766130680351,-500.0,0.00056164,120]
[399165488,1766130680360,-1050.87,0.00056164,120]
[399165489,1766130680369,-3817.38,0.00056164,120]
[399165490,1766130680379,-500.0,0.00056164,120]
[399165491,1766130680388,-500.0,0.00056164,120]
[399165492,1766130680398,-500.0,0.00056164,120]
[399165493,1766130680406,-500.0,0.00056164,30]
[399165494,1766130680417,-505.10673724,0.00056164,120]
[399165495,1766130680427,-500.0,0.00056164,30]
[399165496,1766130680436,-1315.23,0.00056164,120]
[399165497,1766130680445,-500.0,0.00056164,120]
[399165498,1766130680454,-500.0,0.00056164,120]
[399165499,1766130680466,-172.02925243,0.00056164,120]
[399165500,1766130680475,-500.0,0.00056164,120]
[399165501,1766130680485,-500.0,0.00056164,120]
[399165502,1766130680497,-500.0,0.00056164,120]
[399165503,1766130680507,-508.98596658,0.00056164,120]
[399165504,1766130680517,-1071.88,0.00056164,120]
[399165505,1766130680526,-500.0,0.00056164,120]
[399165506,1766130680535,-500.0,0.00056164,120]
[399165507,1766130680545,-500.0,0.00056164,120]
[399165508,1766130680554,-500.0,0.00056164,120]
[399165509,1766130680563,-500.0,0.00056164,120]
[399165510,1766130680572,-500.0,0.00056164,120]
[399165511,1766130680581,-500.0,0.00056164,120]
[399165512,1766130680591,-500.0,0.00056164,120]
[399165513,1766130680600,-500.0,0.00056164,120]
[399165514,1766130680609,-500.0,0.00056164,120]
[399165515,1766130680618,-524.88,0.00056164,120]
[399165516,1766130680627,-500.0,0.00056164,120]
[399165517,1766130680636,-696.02,0.00056164,120]
[399165518,1766130680648,-1278.98,0.00056164,120]
[399165519,1766130680657,-848.2,0.00056164,120]
[399165520,1766130680666,-682.7,0.00056164,120]
[399165521,1766130680675,-500.0,0.00056164,120]
[399165522,1766130680684,-1176.57,0.00056164,120]
[399165523,1766130680694,-247.1285914,0.00056164,120]
[399165524,1766130680703,-500.0,0.00056164,120]
[399165525,1766130680712,-500.0,0.00056164,120]
[399165526,1766130680722,-500.0,0.00056164,120]
[399165527,1766130680731,-540.08405606,0.00056164,120]
[399165528,1766130680740,-500.0,0.00056164,120]
[399165529,1766130680749,-500.0,0.00056164,120]
[399165530,1766130680758,-500.0,0.00056164,120]
[399165531,1766130680767,-500.0,0.00056164,120]
[399165532,1766130680776,-500.0,0.00056164,120]
[399165533,1766130680785,-500.0,0.00056164,120]
[399165534,1766130680794,-500.0,0.00056164,120]
[399165535,1766130680804,-628.56,0.00056164,120]
[399165536,1766130680813,-500.0,0.00056164,120]
[399165537,1766130680822,-1384.97,0.00056164,120]
[399165538,1766130680831,-513.99029623,0.00056164,120]
[399165539,1766130680840,-500.0,0.00056164,120]
[399165540,1766130680850,-1052.14,0.00056164,120]
[399165541,1766130680859,-500.0,0.00056164,120]
[399165542,1766130680867,-236.962878,0.00056164,120]
[399165543,1766130680876,-500.0,0.00056164,120]
[399165544,1766130680885,-440.633969,0.00056164,120]
[399165545,1766130680895,-500.0,0.00056164,120]
[399165546,1766130680904,-500.0,0.00056164,120]
[399165547,1766130680913,-500.0,0.00056164,120]
[399165548,1766130680922,-1084.45,0.00056164,120]
[399165549,1766130680931,-500.0,0.00056164,120]
[399165550,1766130680940,-898.43,0.00056164,120]
[399165551,1766130680949,-502.49899017,0.00056164,120]
[399165552,1766130680958,-500.0,0.00056164,120]
[399165553,1766130680967,-500.0,0.00056164,30]
[399165554,1766130680977,-841.83,0.00056164,120]
[399165555,1766130680986,-500.0,0.00056164,120]
[399165556,1766130680995,-500.0,0.00056164,120]
[399165557,1766130681004,-500.0,0.00056164,120]
[399165558,1766130681013,-500.0,0.00056164,120]
[399165559,1766130681022,-1049.58,0.00056164,120]
[399165560,1766130681031,-500.0,0.00056164,120]
[399165561,1766130681041,-367.53095484,0.00056164,60]
[399165562,1766130681050,-500.0,0.00056164,120]
[399165563,1766130681059,-500.0,0.00056164,120]
[399165564,1766130681069,-509.94416505,0.00056164,120]
[399165565,1766130681078,-5832.94,0.00056164,120]
[399165566,1766130681088,-363.42967015,0.00056164,120]
[399165567,1766130681099,-500.0,0.00056164,120]
[399165568,1766130681109,-506.88587495,0.00056164,120]
[399165569,1766130681120,-500.0,0.00056164,120]
[399165570,1766130681130,-1123.95,0.00056164,120]
[399165571,1766130681139,-500.0,0.00056164,120]
[399165572,1766130681148,-500.0,0.00056164,120]
[399165573,1766130681157,-500.0,0.00056164,120]
[399165574,1766130681166,-500.0,0.00056164,120]
[399165575,1766130681175,-500.0,0.00056164,120]
[399165576,1766130681183,-500.0,0.00056164,120]
[399165577,1766130681197,-500.0,0.00056164,120]
[399165578,1766130681206,-500.0,0.00056164,120]
[399165579,1766130681216,-799.69,0.00056164,21]
[399165580,1766130681225,-565.42,0.00056164,120]
[399165581,1766130681235,-500.0,0.00056164,120]
[399165582,1766130681244,-500.0,0.00056164,120]
[399165583,1766130681254,-500.0,0.00056164,120]
[399165584,1766130681264,-1745.65,0.00056164,120]
[399165585,1766130681273,-504.85402419,0.00056164,120]
[399165586,1766130681282,-1000.0,0.00056164,120]
[399165587,1766130681292,-833.05,0.00056164,120]
[399165588,1766130681301,-501.72,0.00056164,120]
[399165589,1766130681310,-500.0,0.00056164,120]
[399165590,1766130681319,-500.0,0.00056164,120]
[399165591,1766130681328,-500.0,0.00056164,120]
[399165592,1766130681337,-500.0,0.00056164,120]
[399165593,1766130681346,-861.29,0.00056164,120]
[399165594,1766130681355,-500.0,0.00056164,120]
[399165595,1766130681364,-289.5471118,0.00056164,120]
[399165596,1766130681375,-500.0,0.00056164,120]
[399165597,1766130681384,-500.0,0.00056164,120]
[399165598,1766130681393,-4150.56,0.00056164,120]
[399165599,1766130681403,-500.0,0.00056164,120]
[399165600,1766130681412,-503.27245195,0.00056164,120]
[399165601,1766130681422,-500.0,0.00056164,120]
[399165602,1766130681431,-521.86944402,0.00056164,120]
[399165603,1766130681440,-500.0,0.00056164,120]
[399165604,1766130681450,-500.0,0.00056164,120]
[399165605,1766130681459,-1545.59,0.00056164,120]
[399165606,1766130681469,-601.18,0.00056164,120]
[399165607,1766130681478,-500.0,0.00056164,120]
[399165608,1766130681488,-368.99209317,0.00056164,120]
[399165609,1766130681498,-500.0,0.00056164,120]
[399165610,1766130681507,-500.0,0.00056164,120]
[399165611,1766130681516,-500.0,0.00056164,120]
[399165612,1766130681527,-500.0,0.00056164,120]
[399165613,1766130681536,-500.0,0.00056164,120]
[399165614,1766130681545,-3273.78,0.00056164,120]
[399165615,1766130681555,-2163.92,0.00056164,120]
[399165616,1766130681564,-500.0,0.00056164,120]
[399165617,1766130681573,-615.54,0.00056164,120]
[399165618,1766130681584,-2441.66,0.00056164,3]
[399165619,1766130681594,-500.0,0.00056164,120]
[399165620,1766130681603,-500.0,0.00056164,120]
[399165621,1766130681613,-535.83,0.00056164,120]
[399165622,1766130681625,-500.0,0.00056164,120]
[399165623,1766130681635,-500.0,0.00056164,120]
[399165624,1766130681647,-500.0,0.00056164,120]
[399165625,1766130681658,-500.0,0.00056164,120]
[399165626,1766130681668,-500.0,0.00056164,120]
[399165627,1766130681678,-970.05,0.00056164,120]
[399165628,1766130681689,-1307.75,0.00056164,120]
[399165629,1766130681698,-500.0,0.00056164,120]
[399165630,1766130681708,-500.0,0.00056164,120]
[399165631,1766130681717,-529.54,0.00056164,120]
[399165632,1766130681727,-500.0,0.00056164,120]
[399165633,1766130681736,-500.0,0.00056164,120]
[399165634,1766130681745,-500.0,0.00056164,120]
[399165635,1766130681756,-619.49,0.00056164,120]
[399165636,1766130681767,-500.0,0.00056164,120]
[399165637,1766130681777,-2004.58,0.00056164,120]
[399165638,1766130681788,-500.0,0.00056164,120]
[399165639,1766130681798,-555.38,0.00056164,120]
[399165640,1766130681808,-500.0,0.00056164,120]
[399165641,1766130681818,-259.97120762,0.00056164,120]
[399165642,1766130681829,-500.0,0.00056164,120]
[399165643,1766130681840,-500.0,0.00056164,120]
[399165644,1766130681851,-570.98,0.00056164,120]
[399165645,1766130681862,-500.0,0.00056164,120]
[399165646,1766130681872,-500.0,0.00056164,120]
[399165647,1766130681882,-617.64,0.00056164,120]
[399165648,1766130681891,-708.43,0.00056164,120]
[399165649,1766130681900,-500.0,0.00056164,120]
[399165650,1766130681909,-756.93,0.00056164,120]
[399165651,1766130681918,-1547.5,0.00056164,120]
[399165652,1766130681928,-564.73,0.00056164,120]
[399165653,1766130681937,-788.22,0.00056164,120]
[399165654,1766130681946,-500.0,0.00056164,120]
[399165655,1766130681956,-500.0,0.00056164,120]
[399165656,1766130681967,-500.0,0.00056164,120]
[399165657,1766130681978,-500.0,0.00056164,120]
[399165658,1766130681989,-500.0,0.00056164,120]
[399165659,1766130681999,-1289.84,0.00056164,120]